[Event "Titled Tuesday Blitz August 08 Early 2023"]
[White "sasvathaa"]
[Black "Amanov, Zhanibek"]
[BlackFideId "13700189"]
[WhiteElo "2030"]
[BlackElo "2342"]
[Result "0-1"]
[Round "5"]
[TimeControl "180+1"]
[Date "2023.08.08"]
[WhiteClock "0:00:16"]
[BlackClock "0:00:27"]
[Board "220"]

1. d4 {[%clk 0:01:04]}  d5 {[%clk 0:02:57]} 2. Nf3 {[%clk 0:01:03]}  Nf6 {[%clk 0:02:57]} 3. Bf4 {[%clk 0:01:03]}  Bf5 {[%clk 0:02:55]} 4. e3 {[%clk 0:01:03]}  e6 {[%clk 0:02:55]} 5. c3 {[%clk 0:01:04]}  c6 {[%clk 0:02:56]} 6. Bd3 {[%clk 0:01:04]}  Bxd3 {[%clk 0:02:55]} 7. Qxd3 {[%clk 0:01:05]}  Bd6 {[%clk 0:02:55]} 8. Bxd6 {[%clk 0:01:05]}  Qxd6 {[%clk 0:02:56]} 9. Ne5 {[%clk 0:01:06]}  Nbd7 {[%clk 0:02:56]} 10. f4 {[%clk 0:01:06]}  Ne4 {[%clk 0:02:56]} 11. Nd2 {[%clk 0:01:06]}  f5 {[%clk 0:02:56]} 12. O-O {[%clk 0:01:04]}  O-O {[%clk 0:02:56]} 13. Qc2 {[%clk 0:01:03]}  Nxe5 {[%clk 0:02:55]} 14. fxe5 {[%clk 0:01:02]}  Qe7 {[%clk 0:02:55]} 15. Nxe4 {[%clk 0:01:01]}  fxe4 {[%clk 0:02:55]} 16. Rxf8+ {[%clk 0:01:00]}  Rxf8 {[%clk 0:02:55]} 17. Rf1 {[%clk 0:01:00]}  Rxf1+ {[%clk 0:02:51]} 18. Kxf1 {[%clk 0:01:00]}  b5 {[%clk 0:02:49]} 19. a3 {[%clk 0:00:59]}  a5 {[%clk 0:02:48]} 20. Kg1 {[%clk 0:00:59]}  h6 {[%clk 0:02:28]} 21. h3 {[%clk 0:00:58]}  Kh7 {[%clk 0:02:20]} 22. a4 {[%clk 0:00:46]}  b4 {[%clk 0:01:59]} 23. c4 {[%clk 0:00:44]}  Qg5 {[%clk 0:01:48]} 24. Kf2 {[%clk 0:00:41]}  Qh4+ {[%clk 0:01:47]} 25. Kf1 {[%clk 0:00:37]}  Qg3 {[%clk 0:01:46]} 26. cxd5 {[%clk 0:00:37]}  cxd5 {[%clk 0:01:19]} 27. Qf2 {[%clk 0:00:34]}  Qg6 {[%clk 0:00:57]} 28. Qe2 {[%clk 0:00:32]}  Qe8 {[%clk 0:00:48]} 29. Qb5 {[%clk 0:00:27]}  Qc8 {[%clk 0:00:47]} 30. Qxa5 {[%clk 0:00:24]}  Qc1+ {[%clk 0:00:46]} 31. Kf2 {[%clk 0:00:24]}  Qxb2+ {[%clk 0:00:38]} 32. Kg3 {[%clk 0:00:24]}  Qa3 {[%clk 0:00:32]} 33. Kf2 {[%clk 0:00:19]}  b3 {[%clk 0:00:31]} 34. Qb5 {[%clk 0:00:19]}  b2 {[%clk 0:00:31]} 35. a5 {[%clk 0:00:18]}  Qa2 {[%clk 0:00:27]} 36. Kg3 {[%clk 0:00:17]}  b1=Q {[%clk 0:00:26]} 37. Qxb1 {[%clk 0:00:17]}  Qxb1 {[%clk 0:00:27]} 38. a6 {[%clk 0:00:17]}  Qa2 {[%clk 0:00:27]} 39. a7 {[%clk 0:00:18]}  Qxa7 {[%clk 0:00:28]} 40. Kf4 {[%clk 0:00:17]}  Qa3 {[%clk 0:00:28]} 41. g4 {[%clk 0:00:16]}  g5+ {[%clk 0:00:27]} 0-1


[Site "https://www.chess.com"]

[Event "Titled Tuesday Blitz August 08 Early 2023"]
[White "Wisniowski, Natalie"]
[Black "Lopez Gracia, Fernando"]
[WhiteFideId "30929261"]
[BlackFideId "2207184"]
[WhiteElo "2025"]
[BlackElo "2335"]
[Result "0-1"]
[Round "5"]
[TimeControl "180+1"]
[Date "2023.08.08"]
[WhiteClock "0:00:01"]
[BlackClock "0:01:44"]
[Board "221"]

1. e4 {[%clk 0:03:00]}  c5 {[%clk 0:02:59]} 2. d4 {[%clk 0:03:00]}  e6 {[%clk 0:03:00]} 3. Nf3 {[%clk 0:02:51]}  cxd4 {[%clk 0:03:00]} 4. Nxd4 {[%clk 0:02:50]}  Nf6 {[%clk 0:03:00]} 5. Bd3 {[%clk 0:02:37]}  Nc6 {[%clk 0:02:59]} 6. Be3 {[%clk 0:02:32]}  d5 {[%clk 0:02:58]} 7. exd5 {[%clk 0:02:24]}  Nxd5 {[%clk 0:02:59]} 8. Nf3 {[%clk 0:02:06]}  Nxe3 {[%clk 0:02:56]} 9. fxe3 {[%clk 0:02:05]}  Qb6 {[%clk 0:02:54]} 10. O-O {[%clk 0:01:20]}  Qxe3+ {[%clk 0:02:51]} 11. Kh1 {[%clk 0:01:19]}  Be7 {[%clk 0:02:51]} 12. Nbd2 {[%clk 0:00:59]}  O-O {[%clk 0:02:50]} 13. Nc4 {[%clk 0:00:58]}  Qh6 {[%clk 0:02:41]} 14. Qe2 {[%clk 0:00:51]}  b5 {[%clk 0:02:36]} 15. Nce5 {[%clk 0:00:44]}  Nxe5 {[%clk 0:02:32]} 16. Qxe5 {[%clk 0:00:33]}  a6 {[%clk 0:02:28]} 17. Qe4 {[%clk 0:00:29]}  Ra7 {[%clk 0:02:24]} 18. Ne5 {[%clk 0:00:18]}  Bb7 {[%clk 0:02:21]} 19. Qd4 {[%clk 0:00:18]}  Raa8 {[%clk 0:02:07]} 20. Ng4 {[%clk 0:00:18]}  Qg5 {[%clk 0:02:07]} 21. Rg1 {[%clk 0:00:03]}  Rfd8 {[%clk 0:01:59]} 22. Qe5 {[%clk 0:00:02]}  Qxg4 {[%clk 0:01:57]} 23. Raf1 {[%clk 0:00:02]}  Bd6 {[%clk 0:01:54]} 24. Qe3 {[%clk 0:00:02]}  Qh5 {[%clk 0:01:53]} 25. h3 {[%clk 0:00:02]}  Bc5 {[%clk 0:01:51]} 26. Qg3 {[%clk 0:00:01]}  Bxg1 {[%clk 0:01:48]} 27. Kxg1 {[%clk 0:00:02]}  Rxd3 {[%clk 0:01:45]} 28. cxd3 {[%clk 0:00:02]}  Qg6 {[%clk 0:01:46]} 29. Qf2 {[%clk 0:00:02]}  Rd8 {[%clk 0:01:45]} 30. Kh1 {[%clk 0:00:02]}  Rxd3 {[%clk 0:01:44]} 31. Qa7 {[%clk 0:00:01]}  Qxg2# {[%clk 0:01:44]} 0-1


[Site "https://www.chess.com"]

[Event "Titled Tuesday Blitz August 08 Early 2023"]
[White "Osinovsky, Stepan"]
[Black "cthake"]
[WhiteFideId "4157354"]
[WhiteElo "2324"]
[BlackElo "1826"]
[Result "1-0"]
[Round "5"]
[TimeControl "180+1"]
[Date "2023.08.08"]
[WhiteClock "0:00:33"]
[BlackClock "0:00:00"]
[Board "223"]

1. Nf3 {[%clk 0:02:55]}  e6 {[%clk 0:02:58]} 2. g3 {[%clk 0:02:56]}  f5 {[%clk 0:02:57]} 3. Bg2 {[%clk 0:02:57]}  Nf6 {[%clk 0:02:57]} 4. O-O {[%clk 0:02:58]}  Be7 {[%clk 0:02:57]} 5. d3 {[%clk 0:02:59]}  O-O {[%clk 0:02:57]} 6. Nbd2 {[%clk 0:02:58]}  c6 {[%clk 0:02:56]} 7. e4 {[%clk 0:02:58]}  fxe4 {[%clk 0:02:45]} 8. dxe4 {[%clk 0:02:59]}  d5 {[%clk 0:02:45]} 9. Qe2 {[%clk 0:02:52]}  Bd7 {[%clk 0:02:28]} 10. Re1 {[%clk 0:02:42]}  Re8 {[%clk 0:01:56]} 11. e5 {[%clk 0:02:36]}  Nh5 {[%clk 0:01:46]} 12. Nf1 {[%clk 0:02:22]}  g6 {[%clk 0:01:43]} 13. h4 {[%clk 0:02:15]}  c5 {[%clk 0:01:41]} 14. N1h2 {[%clk 0:02:13]}  Nc6 {[%clk 0:01:40]} 15. Ng4 {[%clk 0:02:12]}  Rf8 {[%clk 0:01:15]} 16. Bh6 {[%clk 0:02:08]}  Rf5 {[%clk 0:01:08]} 17. Rad1 {[%clk 0:02:03]}  a6 {[%clk 0:00:59]} 18. c4 {[%clk 0:02:02]}  d4 {[%clk 0:00:54]} 19. Kh2 {[%clk 0:01:41]}  Ng7 {[%clk 0:00:50]} 20. Ng5 {[%clk 0:01:33]}  b5 {[%clk 0:00:44]} 21. Bxg7 {[%clk 0:01:26]}  Kxg7 {[%clk 0:00:42]} 22. Bxc6 {[%clk 0:01:25]}  Bxg5 {[%clk 0:00:33]} 23. Bxa8 {[%clk 0:01:25]}  Qxa8 {[%clk 0:00:28]} 24. hxg5 {[%clk 0:01:23]}  Bc6 {[%clk 0:00:28]} 25. f4 {[%clk 0:01:17]}  Bf3 {[%clk 0:00:27]} 26. Nh6 {[%clk 0:00:56]}  Bxe2 {[%clk 0:00:25]} 27. Rxe2 {[%clk 0:00:54]}  Qf3 {[%clk 0:00:25]} 28. Rdd2 {[%clk 0:00:47]}  Rf8 {[%clk 0:00:24]} 29. Rf2 {[%clk 0:00:43]}  Qe3 {[%clk 0:00:23]} 30. cxb5 {[%clk 0:00:42]}  axb5 {[%clk 0:00:22]} 31. Ng4 {[%clk 0:00:43]}  Qe4 {[%clk 0:00:20]} 32. Nf6 {[%clk 0:00:42]}  Qb1 {[%clk 0:00:19]} 33. a3 {[%clk 0:00:39]}  Qa2 {[%clk 0:00:18]} 34. Nd7 {[%clk 0:00:38]}  Rc8 {[%clk 0:00:15]} 35. Kh3 {[%clk 0:00:37]}  Qd5 {[%clk 0:00:15]} 36. Nf6 {[%clk 0:00:36]}  Qd8 {[%clk 0:00:15]} 37. Kg4 {[%clk 0:00:36]}  c4 {[%clk 0:00:14]} 38. Rh2 {[%clk 0:00:36]}  c3 {[%clk 0:00:15]} 39. Rxh7+ {[%clk 0:00:35]}  Kf8 {[%clk 0:00:00]} 40. Rdh2 {[%clk 0:00:33]} 1-0


[Site "https://www.chess.com"]

[Event "Titled Tuesday Blitz August 08 Early 2023"]
[White "Saim, Mohamed Ilias"]
[Black "MateoReyes"]
[WhiteFideId "7900465"]
[WhiteElo "1990"]
[BlackElo "2453"]
[Result "0-1"]
[Round "5"]
[TimeControl "180+1"]
[Date "2023.08.08"]
[WhiteClock "0:00:51"]
[BlackClock "0:02:06"]
[Board "224"]

1. c4 {[%clk 0:02:57]}  e5 {[%clk 0:02:58]} 2. g3 {[%clk 0:02:55]}  Nc6 {[%clk 0:02:58]} 3. Bg2 {[%clk 0:02:55]}  Bc5 {[%clk 0:02:58]} 4. e3 {[%clk 0:02:51]}  a6 {[%clk 0:02:57]} 5. Nc3 {[%clk 0:02:50]}  d6 {[%clk 0:02:56]} 6. Nge2 {[%clk 0:02:51]}  h5 {[%clk 0:02:55]} 7. d4 {[%clk 0:02:50]}  Ba7 {[%clk 0:02:54]} 8. h4 {[%clk 0:02:44]}  Nge7 {[%clk 0:02:53]} 9. O-O {[%clk 0:02:35]}  Bg4 {[%clk 0:02:49]} 10. Qa4 {[%clk 0:02:18]}  O-O {[%clk 0:02:40]} 11. b4 {[%clk 0:02:17]}  exd4 {[%clk 0:02:37]} 12. exd4 {[%clk 0:01:50]}  Nxd4 {[%clk 0:02:36]} 13. Nf4 {[%clk 0:01:41]}  Rb8 {[%clk 0:02:27]} 14. Be3 {[%clk 0:01:34]}  c5 {[%clk 0:02:20]} 15. b5 {[%clk 0:01:32]}  Bb6 {[%clk 0:02:11]} 16. Rab1 {[%clk 0:01:14]}  axb5 {[%clk 0:02:09]} 17. Nxb5 {[%clk 0:01:10]}  Ra8 {[%clk 0:02:07]} 18. Qd1 {[%clk 0:00:51]}  Bxd1 {[%clk 0:02:06]} 0-1


[Site "https://www.chess.com"]

[Event "Titled Tuesday Blitz August 08 Early 2023"]
[White "Mikhaylova, Irina"]
[Black "Stork, Oliver"]
[WhiteFideId "4109040"]
[BlackFideId "12955728"]
[WhiteElo "2250"]
[BlackElo "2385"]
[Result "1-0"]
[Round "5"]
[TimeControl "180+1"]
[Date "2023.08.08"]
[WhiteClock "0:00:55"]
[BlackClock "0:01:57"]
[Board "225"]

1. d4 {[%clk 0:02:59]}  Nf6 {[%clk 0:02:58]} 2. Nf3 {[%clk 0:03:00]}  d5 {[%clk 0:02:58]} 3. c4 {[%clk 0:03:00]}  e6 {[%clk 0:02:55]} 4. Nc3 {[%clk 0:03:00]}  Bb4 {[%clk 0:02:55]} 5. Bg5 {[%clk 0:03:00]}  h6 {[%clk 0:02:54]} 6. Bxf6 {[%clk 0:02:59]}  Qxf6 {[%clk 0:02:54]} 7. cxd5 {[%clk 0:03:00]}  exd5 {[%clk 0:02:53]} 8. Rc1 {[%clk 0:03:01]}  O-O {[%clk 0:02:51]} 9. a3 {[%clk 0:03:01]}  Bd6 {[%clk 0:02:50]} 10. Nxd5 {[%clk 0:03:00]}  Qf5 {[%clk 0:02:44]} 11. Nc3 {[%clk 0:02:51]}  b6 {[%clk 0:02:39]} 12. e4 {[%clk 0:02:46]}  Qg4 {[%clk 0:02:37]} 13. h3 {[%clk 0:02:21]}  Qg6 {[%clk 0:02:31]} 14. e5 {[%clk 0:01:33]}  Re8 {[%clk 0:02:23]} 15. Bd3 {[%clk 0:01:15]}  Bf5 {[%clk 0:01:57]} 16. Nh4 {[%clk 0:00:55]} 1-0


[Site "https://www.chess.com"]

[Event "Titled Tuesday Blitz August 08 Early 2023"]
[White "Stachanczyk, Jacek"]
[Black "Kiseljova, Marya"]
[WhiteFideId "1116657"]
[BlackFideId "4155009"]
[WhiteElo "2343"]
[BlackElo "2206"]
[Result "1/2-1/2"]
[Round "5"]
[TimeControl "180+1"]
[Date "2023.08.08"]
[WhiteClock "0:00:56"]
[BlackClock "0:00:58"]
[Board "228"]

1. c4 {[%clk 0:02:52]}  e5 {[%clk 0:02:59]} 2. g3 {[%clk 0:02:49]}  Nf6 {[%clk 0:02:57]} 3. Bg2 {[%clk 0:02:49]}  Bc5 {[%clk 0:02:56]} 4. Nc3 {[%clk 0:02:48]}  O-O {[%clk 0:02:56]} 5. e3 {[%clk 0:02:48]}  c6 {[%clk 0:02:56]} 6. Nge2 {[%clk 0:02:47]}  d5 {[%clk 0:02:53]} 7. cxd5 {[%clk 0:02:46]}  cxd5 {[%clk 0:02:52]} 8. d4 {[%clk 0:02:46]}  exd4 {[%clk 0:02:47]} 9. exd4 {[%clk 0:02:46]}  Bb4 {[%clk 0:02:46]} 10. O-O {[%clk 0:02:46]}  Nc6 {[%clk 0:02:46]} 11. Bg5 {[%clk 0:02:43]}  Be6 {[%clk 0:02:41]} 12. Nf4 {[%clk 0:02:34]}  Bxc3 {[%clk 0:02:35]} 13. Nxe6 {[%clk 0:02:30]}  fxe6 {[%clk 0:02:32]} 14. bxc3 {[%clk 0:02:30]}  h6 {[%clk 0:02:30]} 15. Bf4 {[%clk 0:02:25]}  Na5 {[%clk 0:02:24]} 16. Re1 {[%clk 0:02:20]}  Qd7 {[%clk 0:02:23]} 17. Bh3 {[%clk 0:02:18]}  Rfe8 {[%clk 0:02:16]} 18. Qe2 {[%clk 0:02:14]}  Kf7 {[%clk 0:02:16]} 19. Qf3 {[%clk 0:01:57]}  Nc4 {[%clk 0:02:07]} 20. Re2 {[%clk 0:01:57]}  Rac8 {[%clk 0:02:06]} 21. Rae1 {[%clk 0:01:56]}  Rc6 {[%clk 0:02:06]} 22. Be5 {[%clk 0:01:47]}  Qd8 {[%clk 0:01:50]} 23. Qf4 {[%clk 0:01:39]}  Kg8 {[%clk 0:01:47]} 24. Bxf6 {[%clk 0:01:37]}  Qxf6 {[%clk 0:01:45]} 25. Qxf6 {[%clk 0:01:37]}  gxf6 {[%clk 0:01:45]} 26. Bxe6+ {[%clk 0:01:34]}  Kg7 {[%clk 0:01:37]} 27. Bxd5 {[%clk 0:01:33]}  Rxe2 {[%clk 0:01:37]} 28. Rxe2 {[%clk 0:01:34]}  Rc7 {[%clk 0:01:35]} 29. Bxc4 {[%clk 0:01:33]}  Rxc4 {[%clk 0:01:36]} 30. Re7+ {[%clk 0:01:33]}  Kg6 {[%clk 0:01:36]} 31. Rxb7 {[%clk 0:01:33]}  Rxc3 {[%clk 0:01:36]} 32. Rxa7 {[%clk 0:01:33]}  Rd3 {[%clk 0:01:36]} 33. Rb7 {[%clk 0:01:27]}  Rxd4 {[%clk 0:01:35]} 34. Rb1 {[%clk 0:01:27]}  Ra4 {[%clk 0:01:31]} 35. Rb2 {[%clk 0:01:26]}  Ra3 {[%clk 0:01:31]} 36. f3 {[%clk 0:01:26]}  Rxf3 {[%clk 0:01:29]} 37. Kg2 {[%clk 0:01:22]}  Ra3 {[%clk 0:01:29]} 38. Kf2 {[%clk 0:01:23]}  Kf5 {[%clk 0:01:27]} 39. Kg2 {[%clk 0:01:18]}  h5 {[%clk 0:01:27]} 40. h3 {[%clk 0:01:18]}  Kg5 {[%clk 0:01:26]} 41. Kf2 {[%clk 0:01:15]}  f5 {[%clk 0:01:23]} 42. h4+ {[%clk 0:01:14]}  Kg4 {[%clk 0:01:20]} 43. Rb4+ {[%clk 0:01:13]}  Kh3 {[%clk 0:01:20]} 44. Rb5 {[%clk 0:01:05]}  Rxa2+ {[%clk 0:01:19]} 45. Kf3 {[%clk 0:01:06]}  Ra3+ {[%clk 0:01:18]} 46. Kf4 {[%clk 0:01:06]}  Rxg3 {[%clk 0:01:17]} 47. Rxf5 {[%clk 0:01:00]}  Rg4+ {[%clk 0:01:17]} 48. Kf3 {[%clk 0:01:00]}  Kxh4 {[%clk 0:01:16]} 49. Kf2 {[%clk 0:01:00]}  Rg7 {[%clk 0:01:05]} 50. Kf1 {[%clk 0:00:59]}  Kg4 {[%clk 0:01:04]} 51. Rf8 {[%clk 0:00:58]}  Kh3 {[%clk 0:01:01]} 52. Kf2 {[%clk 0:00:58]}  h4 {[%clk 0:01:01]} 53. Kf1 {[%clk 0:00:58]}  Kh2 {[%clk 0:01:01]} 54. Kf2 {[%clk 0:00:59]}  h3 {[%clk 0:00:59]} 55. Kf1 {[%clk 0:00:59]}  Rg1+ {[%clk 0:00:59]} 56. Kf2 {[%clk 0:00:59]}  Rg2+ {[%clk 0:00:59]} 57. Kf1 {[%clk 0:00:59]}  Kg3 {[%clk 0:00:59]} 58. Rg8+ {[%clk 0:00:57]}  Kf3 {[%clk 0:00:58]} 59. Rxg2 {[%clk 0:00:55]}  hxg2+ {[%clk 0:00:58]} 60. Kg1 {[%clk 0:00:56]}  Kg3 {[%clk 0:00:58]} 1/2-1/2


[Site "https://www.chess.com"]

[Event "Titled Tuesday Blitz August 08 Early 2023"]
[White "Villuendas Valero, Adrian"]
[Black "Petersson, Kjell"]
[WhiteFideId "2262460"]
[BlackFideId "1705148"]
[WhiteElo "2317"]
[BlackElo "2199"]
[Result "1-0"]
[Round "5"]
[TimeControl "180+1"]
[Date "2023.08.08"]
[WhiteClock "0:00:05"]
[BlackClock "0:00:00"]
[Board "229"]

1. e4 {[%clk 0:03:00]}  c5 {[%clk 0:02:59]} 2. c3 {[%clk 0:02:59]}  d5 {[%clk 0:02:58]} 3. exd5 {[%clk 0:02:59]}  Qxd5 {[%clk 0:02:59]} 4. d4 {[%clk 0:02:59]}  Nc6 {[%clk 0:02:57]} 5. Nf3 {[%clk 0:02:59]}  cxd4 {[%clk 0:02:57]} 6. cxd4 {[%clk 0:02:58]}  e5 {[%clk 0:02:57]} 7. dxe5 {[%clk 0:02:48]}  Qxd1+ {[%clk 0:02:52]} 8. Kxd1 {[%clk 0:02:49]}  Bg4 {[%clk 0:02:51]} 9. Bf4 {[%clk 0:02:45]}  O-O-O+ {[%clk 0:02:49]} 10. Nd2 {[%clk 0:02:43]}  Bxf3+ {[%clk 0:02:44]} 11. gxf3 {[%clk 0:02:41]}  Bb4 {[%clk 0:02:28]} 12. Bh3+ {[%clk 0:02:38]}  Kb8 {[%clk 0:02:14]} 13. e6+ {[%clk 0:02:38]}  Ka8 {[%clk 0:02:08]} 14. exf7 {[%clk 0:02:37]}  Nge7 {[%clk 0:02:01]} 15. a3 {[%clk 0:02:36]}  Bxd2 {[%clk 0:01:50]} 16. Bxd2 {[%clk 0:02:35]}  Nd4 {[%clk 0:01:46]} 17. Bc3 {[%clk 0:01:58]}  Nb3+ {[%clk 0:01:38]} 18. Ke2 {[%clk 0:01:49]}  Nxa1 {[%clk 0:01:38]} 19. Rxa1 {[%clk 0:01:39]}  Rhf8 {[%clk 0:01:27]} 20. Be6 {[%clk 0:01:37]}  Nd5 {[%clk 0:01:07]} 21. Be5 {[%clk 0:01:24]}  Nf6 {[%clk 0:00:47]} 22. Rg1 {[%clk 0:01:15]}  Rde8 {[%clk 0:00:28]} 23. fxe8=R+ {[%clk 0:00:57]}  Rxe8 {[%clk 0:00:29]} 24. Bxf6 {[%clk 0:00:42]}  Rxe6+ {[%clk 0:00:29]} 25. Kf1 {[%clk 0:00:38]}  Rxf6 {[%clk 0:00:29]} 26. Rxg7 {[%clk 0:00:37]}  a5 {[%clk 0:00:24]} 27. Rxh7 {[%clk 0:00:36]}  Rxf3 {[%clk 0:00:24]} 28. Ke2 {[%clk 0:00:36]}  Rb3 {[%clk 0:00:22]} 29. h4 {[%clk 0:00:36]}  Rxb2+ {[%clk 0:00:21]} 30. Kf1 {[%clk 0:00:35]}  Rb1+ {[%clk 0:00:21]} 31. Kg2 {[%clk 0:00:34]}  Rb3 {[%clk 0:00:20]} 32. h5 {[%clk 0:00:35]}  Rxa3 {[%clk 0:00:20]} 33. h6 {[%clk 0:00:35]}  Ra4 {[%clk 0:00:20]} 34. Kg3 {[%clk 0:00:35]}  Ra1 {[%clk 0:00:19]} 35. Rg7 {[%clk 0:00:17]}  Rh1 {[%clk 0:00:18]} 36. h7 {[%clk 0:00:16]}  Ka7 {[%clk 0:00:18]} 37. f4 {[%clk 0:00:14]}  a4 {[%clk 0:00:18]} 38. f5 {[%clk 0:00:14]}  a3 {[%clk 0:00:17]} 39. Rg4 {[%clk 0:00:14]}  b5 {[%clk 0:00:15]} 40. Rh4 {[%clk 0:00:10]}  Rg1+ {[%clk 0:00:10]} 41. Kf4 {[%clk 0:00:09]}  Rf1+ {[%clk 0:00:09]} 42. Kg5 {[%clk 0:00:10]}  Rg1+ {[%clk 0:00:08]} 43. Kh6 {[%clk 0:00:06]}  a2 {[%clk 0:00:05]} 44. h8=Q {[%clk 0:00:05]}  a1=Q {[%clk 0:00:05]} 45. Qxa1+ {[%clk 0:00:05]}  Rxa1 {[%clk 0:00:04]} 46. f6 {[%clk 0:00:05]}  Rf1 {[%clk 0:00:04]} 47. Kg7 {[%clk 0:00:05]}  Rg1+ {[%clk 0:00:00]} 48. Kf8 {[%clk 0:00:05]} 1-0


[Site "https://www.chess.com"]

[Event "Titled Tuesday Blitz August 08 Early 2023"]
[White "Pumpkin_in_moonlight"]
[Black "Vaibhav, Suri"]
[BlackFideId "5045185"]
[WhiteElo "2153"]
[BlackElo "2712"]
[Result "0-1"]
[Round "5"]
[TimeControl "180+1"]
[Date "2023.08.08"]
[WhiteClock "0:00:00"]
[BlackClock "0:00:16"]
[Board "231"]

1. e4 {[%clk 0:03:00]}  Nf6 {[%clk 0:02:48]} 2. e5 {[%clk 0:02:58]}  Nd5 {[%clk 0:02:48]} 3. d4 {[%clk 0:02:57]}  d6 {[%clk 0:02:48]} 4. c4 {[%clk 0:02:57]}  Nb6 {[%clk 0:02:49]} 5. exd6 {[%clk 0:02:52]}  cxd6 {[%clk 0:02:48]} 6. Nc3 {[%clk 0:02:51]}  g6 {[%clk 0:02:48]} 7. Be3 {[%clk 0:02:50]}  Bg7 {[%clk 0:02:48]} 8. Rc1 {[%clk 0:02:46]}  O-O {[%clk 0:02:47]} 9. b3 {[%clk 0:02:40]}  Nc6 {[%clk 0:02:30]} 10. h3 {[%clk 0:02:29]}  e5 {[%clk 0:02:16]} 11. Nf3 {[%clk 0:02:14]}  Qe7 {[%clk 0:02:08]} 12. Be2 {[%clk 0:02:08]}  e4 {[%clk 0:02:03]} 13. Nh2 {[%clk 0:01:39]}  f5 {[%clk 0:02:02]} 14. d5 {[%clk 0:01:35]}  Ne5 {[%clk 0:01:52]} 15. Qd2 {[%clk 0:01:18]}  Bd7 {[%clk 0:01:34]} 16. Bg5 {[%clk 0:01:15]}  Bf6 {[%clk 0:01:32]} 17. h4 {[%clk 0:01:09]}  Rae8 {[%clk 0:01:28]} 18. O-O {[%clk 0:00:52]}  Nf7 {[%clk 0:01:10]} 19. Bxf6 {[%clk 0:00:36]}  Qxf6 {[%clk 0:01:11]} 20. g3 {[%clk 0:00:34]}  Re7 {[%clk 0:01:11]} 21. Rfe1 {[%clk 0:00:33]}  Ne5 {[%clk 0:01:10]} 22. Bf1 {[%clk 0:00:29]}  Be8 {[%clk 0:01:02]} 23. Qg5 {[%clk 0:00:28]}  Qg7 {[%clk 0:00:59]} 24. Rcd1 {[%clk 0:00:27]}  h6 {[%clk 0:00:59]} 25. Qc1 {[%clk 0:00:23]}  g5 {[%clk 0:00:59]} 26. hxg5 {[%clk 0:00:21]}  hxg5 {[%clk 0:01:00]} 27. Bg2 {[%clk 0:00:22]}  Bh5 {[%clk 0:00:53]} 28. Rd2 {[%clk 0:00:14]}  Nbd7 {[%clk 0:00:50]} 29. Rc2 {[%clk 0:00:11]}  Nd3 {[%clk 0:00:49]} 30. Qd2 {[%clk 0:00:11]}  N7e5 {[%clk 0:00:46]} 31. Rf1 {[%clk 0:00:10]}  Qh6 {[%clk 0:00:42]} 32. Ne2 {[%clk 0:00:10]}  Bxe2 {[%clk 0:00:39]} 33. Qxe2 {[%clk 0:00:09]}  Rh7 {[%clk 0:00:40]} 34. Rb1 {[%clk 0:00:04]}  Qxh2+ {[%clk 0:00:36]} 35. Kf1 {[%clk 0:00:04]}  g4 {[%clk 0:00:23]} 36. Qe3 {[%clk 0:00:03]}  Nf3 {[%clk 0:00:20]} 37. Ke2 {[%clk 0:00:00]}  Qh5 {[%clk 0:00:16]} 0-1


[Site "https://www.chess.com"]

[Event "Titled Tuesday Blitz August 08 Early 2023"]
[White "rikchessmx"]
[Black "Stangl, Anita, Dr."]
[BlackFideId "4608801"]
[WhiteElo "2316"]
[BlackElo "2152"]
[Result "1-0"]
[Round "5"]
[TimeControl "180+1"]
[Date "2023.08.08"]
[WhiteClock "0:02:27"]
[BlackClock "0:02:32"]
[Board "234"]

1. e4 {[%clk 0:03:00]}  e6 {[%clk 0:02:52]} 2. d4 {[%clk 0:02:34]}  d5 {[%clk 0:02:48]} 3. Nc3 {[%clk 0:02:34]}  Nf6 {[%clk 0:02:47]} 4. Bg5 {[%clk 0:02:33]}  Be7 {[%clk 0:02:46]} 5. e5 {[%clk 0:02:33]}  Nfd7 {[%clk 0:02:46]} 6. h4 {[%clk 0:02:33]}  Bxg5 {[%clk 0:02:46]} 7. hxg5 {[%clk 0:02:34]}  Qxg5 {[%clk 0:02:47]} 8. Nh3 {[%clk 0:02:35]}  Qe7 {[%clk 0:02:47]} 9. Qg4 {[%clk 0:02:35]}  g6 {[%clk 0:02:46]} 10. Ng5 {[%clk 0:02:35]}  h5 {[%clk 0:02:43]} 11. Qf4 {[%clk 0:02:35]}  a6 {[%clk 0:02:41]} 12. O-O-O {[%clk 0:02:35]}  c5 {[%clk 0:02:42]} 13. dxc5 {[%clk 0:02:31]}  Nc6 {[%clk 0:02:41]} 14. Rxd5 {[%clk 0:02:30]}  exd5 {[%clk 0:02:40]} 15. Nxd5 {[%clk 0:02:30]}  Qxc5 {[%clk 0:02:33]} 16. Qxf7+ {[%clk 0:02:26]}  Kd8 {[%clk 0:02:32]} 17. Ne6# {[%clk 0:02:27]} 1-0


[Site "https://www.chess.com"]

[Event "Titled Tuesday Blitz August 08 Early 2023"]
[White "Tarnowska, Aleksandra"]
[Black "Tosic, Srecko"]
[WhiteFideId "1180967"]
[BlackFideId "924563"]
[WhiteElo "2150"]
[BlackElo "2311"]
[Result "1-0"]
[Round "5"]
[TimeControl "180+1"]
[Date "2023.08.08"]
[WhiteClock "0:00:04"]
[BlackClock "0:00:00"]
[Board "235"]

1. e4 {[%clk 0:02:58]}  e6 {[%clk 0:02:59]} 2. d4 {[%clk 0:02:58]}  d5 {[%clk 0:02:59]} 3. Nd2 {[%clk 0:02:58]}  Nf6 {[%clk 0:02:59]} 4. e5 {[%clk 0:02:59]}  Nfd7 {[%clk 0:02:59]} 5. Bd3 {[%clk 0:02:59]}  c5 {[%clk 0:03:00]} 6. c3 {[%clk 0:03:00]}  Nc6 {[%clk 0:03:01]} 7. Ne2 {[%clk 0:03:01]}  cxd4 {[%clk 0:03:01]} 8. cxd4 {[%clk 0:03:02]}  f6 {[%clk 0:03:02]} 9. exf6 {[%clk 0:03:02]}  Qxf6 {[%clk 0:03:03]} 10. Nf3 {[%clk 0:03:02]}  h6 {[%clk 0:03:03]} 11. O-O {[%clk 0:03:01]}  Bd6 {[%clk 0:03:04]} 12. Ng3 {[%clk 0:03:01]}  O-O {[%clk 0:03:04]} 13. Nh5 {[%clk 0:02:41]}  Qe7 {[%clk 0:03:03]} 14. Bb1 {[%clk 0:02:16]}  Rd8 {[%clk 0:03:03]} 15. Qd3 {[%clk 0:02:10]}  Nf8 {[%clk 0:03:04]} 16. Bf4 {[%clk 0:01:55]}  Bxf4 {[%clk 0:02:48]} 17. Nxf4 {[%clk 0:01:56]}  Qf7 {[%clk 0:02:48]} 18. Nh3 {[%clk 0:01:50]}  Bd7 {[%clk 0:02:42]} 19. a3 {[%clk 0:01:50]}  Rac8 {[%clk 0:02:41]} 20. Re1 {[%clk 0:01:45]}  Qf6 {[%clk 0:02:20]} 21. Ne5 {[%clk 0:01:30]}  Be8 {[%clk 0:02:20]} 22. Bc2 {[%clk 0:01:02]}  Nxd4 {[%clk 0:01:59]} 23. Ng4 {[%clk 0:00:24]}  Qf5 {[%clk 0:01:33]} 24. Qxd4 {[%clk 0:00:21]}  Rxc2 {[%clk 0:01:28]} 25. Re5 {[%clk 0:00:19]}  Qg6 {[%clk 0:01:09]} 26. Rae1 {[%clk 0:00:16]}  Rdc8 {[%clk 0:01:03]} 27. Ne3 {[%clk 0:00:14]}  Rc1 {[%clk 0:01:01]} 28. Nf1 {[%clk 0:00:08]}  Rxe1 {[%clk 0:00:49]} 29. Rxe1 {[%clk 0:00:09]}  Bf7 {[%clk 0:00:47]} 30. Qxa7 {[%clk 0:00:09]}  Rc2 {[%clk 0:00:34]} 31. Qxb7 {[%clk 0:00:08]}  d4 {[%clk 0:00:29]} 32. Nf4 {[%clk 0:00:05]}  Qf5 {[%clk 0:00:27]} 33. Qf3 {[%clk 0:00:05]}  Rxb2 {[%clk 0:00:24]} 34. Ng3 {[%clk 0:00:04]}  Qa5 {[%clk 0:00:20]} 35. Rd1 {[%clk 0:00:02]}  e5 {[%clk 0:00:20]} 36. Nfh5 {[%clk 0:00:01]}  Ng6 {[%clk 0:00:12]} 37. Qg4 {[%clk 0:00:01]}  Kh7 {[%clk 0:00:11]} 38. Nf5 {[%clk 0:00:01]}  Rd2 {[%clk 0:00:08]} 39. Rf1 {[%clk 0:00:01]}  Qxa3 {[%clk 0:00:07]} 40. Nhxg7 {[%clk 0:00:02]}  Be6 {[%clk 0:00:06]} 41. h3 {[%clk 0:00:02]}  Bxf5 {[%clk 0:00:05]} 42. Nxf5 {[%clk 0:00:03]}  Qf8 {[%clk 0:00:04]} 43. Qh5 {[%clk 0:00:04]}  Qf6 {[%clk 0:00:03]} 44. Qxh6+ {[%clk 0:00:04]}  Kg8 {[%clk 0:00:04]} 45. Ng3 {[%clk 0:00:03]}  Qg7 {[%clk 0:00:00]} 46. Qxd2 {[%clk 0:00:04]} 1-0


[Site "https://www.chess.com"]